[Event "23rd OIBM 2019"]
[Site "Gmund am Tegernsee"]
[Date "2019.10.27"]
[Round "2.17"]
[White "Rasch, Holger"]
[Black "Asadli, Vugar"]
[Result "0-1"]
[ECO "B06"]
[WhiteElo "2236"]
[BlackElo "2513"]
[Annotator "RC"]
[PlyCount "156"]
[EventDate "2019.10.17"]
[EventType "swiss"]
[EventCountry "GER"]
[SourceTitle "playchess.com"]
[Source "ChessBase"]
[SourceQuality "1"]
[TimeControl "40/5400+30:1800+30"]

1. e4 {[%emt 0:00:00]} g6 {[%emt 0:00:00]} 2. d4 {[%emt 0:00:00]} Bg7 {[%emt 0:00:00]} 3. Nc3 {[%emt 0:00:00]} d6 {[%emt 0:00:00]} 4. Nf3 {[%emt 0:00:13]} a6 {[%emt 0:00:00]} 5. a4 {[%emt 0:00:34]} Nf6 {[%emt 0:00:18]} 6. Be2 {[%emt 0:01:00]} O-O {[%emt 0:00:07]} 7. O-O {[%emt 0:01:06]} Nc6 {[%emt 0:00:10]} 8. h3 {[%emt 0:01:13]} e6 {[%emt 0:00:46]} 9. Be3 {[%emt 0:06:11]} b6 {[%emt 0:00:07]} 10. Qd2 {[%emt 0:00:51]} Bb7 {[%emt 0:00:49]} 11. Rad1 {[%emt 0:00:46]} Ne7 {[%emt 0:02:47]} 12. Bd3 {[%emt 0:16:43]} c5 {[%emt 0:07:20]} 13. Bh6 {[%emt 0:03:44]} Qc7 {[%emt 0:05:31]} 14. Bxg7 {[%emt 0:07:16]} Kxg7 {[%emt 0:00:01]} 15. e5 {[%emt 0:02:48]} dxe5 {[%emt 0:05:10]} 16. dxe5 {[%emt 0:01:04]} Nfd5 {[%emt 0:03:35]} 17. Nxd5 {[%emt 0:00:27]} Bxd5 {[%emt 0:00:34]} 18. Be2 {[%emt 0:00:20]} Rad8 {[%emt 0:06:26]} 19. Qf4 {[%emt 0:01:35]} Bb7 {[%emt 0:04:56]} 20. Nh2 {[%emt 0:17:09]} Nf5 {[%emt 0:06:06]} 21. Ng4 {[%emt 0:08:39]} h6 {[%emt 0:03:12]} 22. Ne3 {[%emt 0:04:29]} Rfe8 {[%emt 0:03:27]} 23. Rxd8 {[%emt 0:10:00]} Rxd8 {[%emt 0:00:14]} 24. Rd1 {[%emt 0:04:30]} Rxd1+ {[%emt 0:00:50]} 25. Bxd1 {[%emt 0:00:04]} Qd7 {[%emt 0:00:11]} 26. Nxf5+ {[%emt 0:10:21]} exf5 {[%emt 0:00:06]} 27. Be2 {[%emt 0:00:09]} a5 {[%emt 0:00:33]} 28. b3 {[%emt 0:00:25]} g5 {[%emt 0:01:32]} 29. Qe3 {[%emt 0:00:14]} f4 {[%emt 0:00:28]} 30. Qc3 {[%emt 0:00:21]} Kf8 {[%emt 0:00:04]} 31. Bg4 {[%emt 0:00:41]} Qd4 {[%emt 0:01:10]} 32. Qxd4 {[%emt 0:01:59]} cxd4 {[%emt 0:01:36]} 33. Bf5 {[%emt 0:00:01]} Ke7 {[%emt 0:00:52]} 34. f3 {[%emt 0:00:08]} Ba6 {[%emt 0:03:53]} 35. Kf2 {[%emt 0:00:04]} f6 {[%emt 0:00:10]} 36. exf6+ {[%emt 0:00:28]} Kxf6 {[%emt 0:00:03]} 37. Be4 {[%emt 0:00:45]} Ke5 {[%emt 0:00:05]} 38. Ke1 {[%emt 0:00:15]} Kd6 {[%emt 0:00:56]} 39. Bf5 {[%emt 0:01:33]} Kc5 {[%emt 0:04:11]} 40. Kd2 {[%emt 0:00:10]} Kb4 {[%emt 0:05:17]} 41. Bd3 {[%emt 0:02:21]} Bc8 {[%emt 0:02:28]} 42. Bb5 {[%emt 0:00:30]} Ka3 {[%emt 0:16:10]} 43. Bc4 {[%emt 0:02:10]} Kb2 {[%emt 0:00:30]} 44. Bb5 {[%emt 0:00:14]} Be6 {[%emt 0:03:11]} 45. Ba6 {[%emt 0:01:40]} Ka3 {[%emt 0:01:30]} 46. Bd3 {[%emt 0:00:32]} Kb4 {[%emt 0:00:04]} 47. Ba6 {[%emt 0:00:20]} Kc5 {[%emt 0:00:04]} 48. Bd3 {[%emt 0:00:11]} Kd6 {[%emt 0:00:06]} 49. Ba6 {[%emt 0:01:45]} Ke5 {[%emt 0:00:21]} 50. Bd3 {[%emt 0:01:50]} Bd5 {[%emt 0:00:14]} 51. Bb5 {[%emt 0:00:19]} Bf7 {[%emt 0:03:01]} 52. Bd3 {[%emt 0:01:04]} h5 {[%emt 0:00:39]} 53. Be2 {[%emt 0:14:43]} Bd5 {[%emt 0:00:38]} 54. Bf1 {[%emt 0:00:12]} Be6 {[%emt 0:01:20]} 55. Be2 {[%emt 0:02:53]} Bc8 {[%emt 0:00:06]} 56. Bd3 {[%emt 0:03:36]} Bb7 {[%emt 0:09:15]} 57. Be2 {[%emt 0:00:04]} g4 {[%emt 0:01:52]} 58. hxg4 {[%emt 0:00:02]} hxg4 {[%emt 0:00:03]} 59. Bd1 {[%emt 0:00:25]} g3 {[%emt 0:03:00]} 60. Be2 {[%emt 0:01:14]} Bd5 {[%emt 0:00:33]} 61. Bd1 {[%emt 0:00:37]} Be6 {[%emt 0:00:56]} 62. Be2 {[%emt 0:01:07]} Kd6 {[%emt 0:01:21]} 63. Kd3 {[%emt 0:00:50]} Ke5 {[%emt 0:02:12]} 64. Kd2 {[%emt 0:00:10]} Bf7 {[%emt 0:00:37]} 65. Bb5 {[%emt 0:00:37]} Bd5 {[%emt 0:01:02]} 66. Be2 {[%emt 0:00:06]} Kd6 {[%emt 0:00:28]} 67. Kd3 {[%emt 0:00:27]} Kc5 {[%emt 0:00:22]} 68. Kd2 {[%emt 0:01:12]} Be6 {[%emt 0:00:32]} 69. Bd3 {[%emt 0:00:28]} Kb4 {[%emt 0:00:23]} 70. Bb5 {[%emt 0:00:10]} Bd5 {[%emt 0:00:53]} 71. Be2 {[%emt 0:00:03]} Bb7 {[%emt 0:00:10]} 72. Bf1 {[%emt 0:00:12]} Ka3 {[%emt 0:00:19]} 73. Be2 {[%emt 0:00:19]} Kb2 {[%emt 0:00:15]} 74. Bf1 {[%emt 0:00:17]} d3 {[%emt 0:02:09]} 75. Kxd3 {[%emt 0:00:09]} Ba6+ {[%emt 0:00:25]} 76. c4 {[%emt 0:00:09]} Kxb3 {[%emt 0:00:04]} 77. Ke4 {[%emt 0:05:25]} Kxa4 {[%emt 0:00:24]} 78. Kxf4 {[%emt 0:00:16]} Kb4 {[%emt 0:00:22]} 0-1

[Event "23rd OIBM 2019"]
[Site "Gmund am Tegernsee"]
[Date "2019.10.27"]
[Round "2.18"]
[White "Engel, Luis"]
[Black "Moeldner, Juergen"]
[Result "1-0"]
[ECO "C06"]
[WhiteElo "2507"]
[BlackElo "2234"]
[Annotator "RC"]
[PlyCount "107"]
[EventDate "2019.10.17"]
[EventType "swiss"]
[EventCountry "GER"]
[SourceTitle "playchess.com"]
[Source "ChessBase"]
[SourceQuality "1"]
[TimeControl "40/5400+30:1800+30"]

1. e4 {[%emt 0:02:06]} e6 {[%emt 0:00:00]} 2. d4 {[%emt 0:00:04]} d5 {[%emt 0:00:00]} 3. Nd2 {[%emt 0:00:05]} Nf6 {[%emt 0:00:00]} 4. e5 {[%emt 0:00:04]} Nfd7 {[%emt 0:00:05]} 5. Bd3 {[%emt 0:00:06]} c5 {[%emt 0:00:05]} 6. c3 {[%emt 0:00:04]} Nc6 {[%emt 0:00:05]} 7. Ne2 {[%emt 0:00:05]} cxd4 {[%emt 0:00:06]} 8. cxd4 {[%emt 0:00:05]} f6 {[%emt 0:00:06]} 9. exf6 {[%emt 0:00:04]} Nxf6 {[%emt 0:00:06]} 10. O-O {[%emt 0:00:07]} Bd6 {[%emt 0:00:15]} 11. Nf3 {[%emt 0:00:13]} Qc7 {[%emt 0:00:14]} 12. h3 {[%emt 0:00:16]} O-O {[%emt 0:00:47]} 13. Re1 {[%emt 0:00:04]} Bd7 {[%emt 0:02:20]} 14. Be3 {[%emt 0:00:28]} Rae8 {[%emt 0:01:42]} 15. Rc1 {[%emt 0:00:09]} Qb8 {[%emt 0:06:19]} 16. Nc3 {[%emt 0:01:20]} Re7 {[%emt 0:04:40]} 17. Nb5 {[%emt 0:07:49]} Bb4 {[%emt 0:01:15]} 18. Bd2 {[%emt 0:00:35]} a6 {[%emt 0:01:23]} 19. Bxb4 {[%emt 0:00:44]} Nxb4 {[%emt 0:00:17]} 20. Nc3 {[%emt 0:00:32]} Nxd3 {[%emt 0:00:56]} 21. Qxd3 {[%emt 0:00:07]} Qd6 {[%emt 0:06:37]} 22. Ne5 {[%emt 0:02:20]} Be8 {[%emt 0:01:35]} 23. Qe3 {[%emt 0:09:29]} Rc7 {[%emt 0:12:46]} 24. Ne2 {[%emt 0:04:07]} Rxc1 {[%emt 0:02:15]} 25. Rxc1 {[%emt 0:00:47]} Bd7 {[%emt 0:03:22]} 26. Qc3 {[%emt 0:05:18]} Bb5 {[%emt 0:06:08]} 27. Ng3 {[%emt 0:02:13]} Nd7 {[%emt 0:02:21]} 28. Re1 {[%emt 0:06:30]} Nxe5 {[%emt 0:05:02]} 29. Rxe5 {[%emt 0:00:10]} Bd7 {[%emt 0:00:41]} 30. Qe3 {[%emt 0:08:06]} Rf7 {[%emt 0:08:29]} 31. Nh5 {[%emt 0:01:44]} Qf8 {[%emt 0:01:35]} 32. a3 {[%emt 0:07:05]} Bc8 {[%emt 0:05:16]} 33. g3 {[%emt 0:01:52]} Qd6 {[%emt 0:05:14]} 34. Nf4 {[%emt 0:02:44]} Rf6 {[%emt 0:00:34]} 35. h4 {[%emt 0:01:36]} Bd7 {[%emt 0:01:08]} 36. Kg2 {[%emt 0:03:03]} Bc8 {[%emt 0:03:18]} 37. Qd2 {[%emt 0:05:54]} Bd7 {[%emt 0:02:02]} 38. Re1 {[%emt 0:00:59]} Rf8 {[%emt 0:03:38]} 39. Nd3 {[%emt 0:00:28]} b6 {[%emt 0:01:15]} 40. Ne5 {[%emt 0:00:45]} a5 {[%emt 0:03:09]} 41. Rc1 {[%emt 0:32:08]} Rc8 {[%emt 0:36:33]} 42. h5 {[%emt 0:01:30]} Rxc1 {[%emt 0:01:37]} 43. Qxc1 {[%emt 0:00:05]} Be8 {[%emt 0:02:05]} 44. h6 {[%emt 0:01:51]} Qd8 {[%emt 0:04:03]} 45. hxg7 {[%emt 0:01:40]} Kxg7 {[%emt 0:00:00]} 46. Ng4 {[%emt 0:00:00]} Bg6 {[%emt 0:00:00]} 47. Qf4 {[%emt 0:00:00]} Qe7 {[%emt 0:00:00]} 48. Qe5+ {[%emt 0:00:00]} Kf7 {[%emt 0:00:00]} 49. Qh8 {[%emt 0:00:00]} Qg5 {[%emt 0:00:00]} 50. Ne5+ {[%emt 0:00:00]} Ke7 {[%emt 0:00:00]} 51. Qg7+ {[%emt 0:00:00]} Ke8 {[%emt 0:00:00]} 52. Qd7+ {[%emt 0:00:00]} Kf8 {[%emt 0:00:00]} 53. Qxe6 {[%emt 0:00:00]} Be4+ {[%emt 0:00:00]} 54. f3 {[%emt 0:00:00]} 1-0

[Event "23rd OIBM 2019"]
[Site "Gmund am Tegernsee"]
[Date "2019.10.27"]
[Round "2.19"]
[White "Hedke, Fred"]
[Black "Vetoshko, Volodymyr"]
[Result "0-1"]
[ECO "B06"]
[WhiteElo "2225"]
[BlackElo "2506"]
[Annotator "ChessBase"]
[PlyCount "82"]
[EventDate "2019.10.17"]
[EventType "swiss"]
[EventCountry "GER"]
[SourceTitle "playchess.com"]
[Source "ChessBase"]
[SourceQuality "1"]
[TimeControl "40/5400+30:1800+30"]

1. e4 {[%emt 0:00:00]} g6 {[%emt 0:03:27]} 2. d4 {[%emt 0:00:48]} Bg7 {[%emt 0:00:01]} 3. Nf3 {[%emt 0:01:44]} d6 {[%emt 0:00:22]} 4. Bd3 {[%emt 0:04:47]} Nf6 {[%emt 0:01:26]} 5. O-O {[%emt 0:00:41]} O-O {[%emt 0:00:02]} 6. Re1 {[%emt 0:04:34]} c6 {[%emt 0:02:32]} 7. h3 {[%emt 0:05:03]} Nbd7 {[%emt 0:03:18]} 8. c3 {[%emt 0:04:41]} e5 {[%emt 0:00:35]} 9. dxe5 {[%emt 0:07:50]} dxe5 {[%emt 0:01:00]} 10. Bc2 {[%emt 0:03:00]} Qc7 {[%emt 0:04:22]} 11. a4 {[%emt 0:00:23]} Rd8 {[%emt 0:04:35]} 12. Qe2 {[%emt 0:03:04]} Nc5 {[%emt 0:05:34]} 13. Na3 {[%emt 0:03:41]} Nh5 {[%emt 0:02:39]} 14. Be3 {[%emt 0:05:25]} Nf4 {[%emt 0:02:25]} 15. Bxf4 {[%emt 0:02:33]} exf4 {[%emt 0:01:51]} 16. e5 {[%emt 0:03:00]} b6 {[%emt 0:03:48]} 17. Qc4 {[%emt 0:02:20]} Bh6 {[%emt 0:03:08]} 18. b4 {[%emt 0:07:13]} Be6 {[%emt 0:14:10]} 19. Qe2 {[%emt 0:01:56]} Nd7 {[%emt 0:00:15]} 20. Rad1 {[%emt 0:11:57]} Re8 {[%emt 0:04:13]} 21. Nc4 {[%emt 0:02:29]} Rad8 {[%emt 0:09:25]} 22. Nd6 {[%emt 0:07:45]} Re7 {[%emt 0:00:27]} 23. Ne4 {[%emt 0:07:08]} Bd5 {[%emt 0:10:27]} 24. Qd2 {[%emt 0:00:31]} Kg7 {[%emt 0:03:07]} 25. Qd4 {[%emt 0:00:33]} Nxe5 {[%emt 0:04:14]} 26. Nxe5 {[%emt 0:00:47]} Qxe5 {[%emt 0:00:12]} 27. Qxe5+ {[%emt 0:00:45]} Rxe5 {[%emt 0:00:04]} 28. c4 {[%emt 0:00:40]} Rde8 {[%emt 0:03:03]} 29. cxd5 {[%emt 0:00:48]} cxd5 {[%emt 0:00:05]} 30. f3 {[%emt 0:02:23]} f5 {[%emt 0:01:57]} 31. Kf1 {[%emt 0:00:52]} fxe4 {[%emt 0:00:53]} 32. fxe4 {[%emt 0:00:27]} dxe4 {[%emt 0:01:16]} 33. Rd7+ {[%emt 0:03:12]} Kf6 {[%emt 0:03:51]} 34. Rxa7 {[%emt 0:00:07]} Bf8 {[%emt 0:00:23]} 35. Rb7 {[%emt 0:01:24]} R8e6 {[%emt 0:01:18]} 36. Rb1 {[%emt 0:00:32]} e3 {[%emt 0:00:54]} 37. Ke2 {[%emt 0:01:34]} Rg5 {[%emt 0:01:04]} 38. g4 {[%emt 0:00:30]} Rd5 {[%emt 0:00:52]} 39. Bb3 {[%emt 0:01:49]} Rd2+ {[%emt 0:00:07]} 40. Kf1 {[%emt 0:00:24]} e2+ {[%emt 0:01:21]} 41. Ke1 {[%emt 0:30:09]} Bxb4 {[%emt 0:30:42]} 0-1

[Event "23rd OIBM 2019"]
[Site "Gmund am Tegernsee"]
[Date "2019.10.27"]
[Round "2.20"]
[White "Korneev, Oleg"]
[Black "Nagel, Bernhard"]
[Result "1-0"]
[ECO "A46"]
[WhiteElo "2504"]
[BlackElo "2224"]
[Annotator "RC"]
[PlyCount "115"]
[EventDate "2019.10.17"]
[EventType "swiss"]
[EventCountry "GER"]
[SourceTitle "playchess.com"]
[Source "ChessBase"]
[SourceQuality "1"]
[TimeControl "40/5400+30:1800+30"]

1. d4 {[%emt 0:02:14]} Nf6 {[%emt 0:00:00]} 2. Nf3 {[%emt 0:00:08]} e6 {[%emt 0:01:18]} 3. Bf4 {[%emt 0:04:54]} d5 {[%emt 0:00:49]} 4. e3 {[%emt 0:00:10]} Bd6 {[%emt 0:00:30]} 5. Bg3 {[%emt 0:00:18]} O-O {[%emt 0:01:18]} 6. Nbd2 {[%emt 0:00:26]} c5 {[%emt 0:01:52]} 7. c3 {[%emt 0:00:02]} b6 {[%emt 0:01:39]} 8. a4 {[%emt 0:09:47]} Nc6 {[%emt 0:06:05]} 9. Bb5 {[%emt 0:00:11]} Bb7 {[%emt 0:00:12]} 10. O-O {[%emt 0:00:25]} Ne7 {[%emt 0:05:47]} 11. Bd3 {[%emt 0:00:28]} Nf5 {[%emt 0:11:19]} 12. Bxf5 {[%emt 0:00:15]} exf5 {[%emt 0:00:06]} 13. Bxd6 {[%emt 0:04:00]} Qxd6 {[%emt 0:00:12]} 14. a5 {[%emt 0:14:44]} c4 {[%emt 0:01:41]} 15. Qa4 {[%emt 0:05:39]} Bc6 {[%emt 0:04:51]} 16. Qa3 {[%emt 0:01:02]} Qxa3 {[%emt 0:05:50]} 17. Rxa3 {[%emt 0:00:04]} b5 {[%emt 0:00:30]} 18. Ne1 {[%emt 0:03:08]} Ne4 {[%emt 0:09:25]} 19. Nxe4 {[%emt 0:00:06]} fxe4 {[%emt 0:00:17]} 20. a6 {[%emt 0:05:02]} Rab8 {[%emt 0:06:04]} 21. Nc2 {[%emt 0:00:07]} Rb6 {[%emt 0:02:50]} 22. Nb4 {[%emt 0:00:12]} f5 {[%emt 0:01:22]} 23. f4 {[%emt 0:02:12]} Rf6 {[%emt 0:02:40]} 24. Kf2 {[%emt 0:00:36]} Rd6 {[%emt 0:00:26]} 25. Rg1 {[%emt 0:02:04]} Bd7 {[%emt 0:00:14]} 26. h3 {[%emt 0:00:02]} h5 {[%emt 0:01:26]} 27. Kg3 {[%emt 0:02:33]} Kh7 {[%emt 0:03:04]} 28. Kh4 {[%emt 0:00:10]} Kh6 {[%emt 0:01:15]} 29. Raa1 {[%emt 0:00:09]} Bc8 {[%emt 0:01:49]} 30. Raf1 {[%emt 0:01:42]} Bd7 {[%emt 0:00:29]} 31. Rh1 {[%emt 0:03:01]} g6 {[%emt 0:05:31]} 32. Rfg1 {[%emt 0:00:23]} Bc8 {[%emt 0:00:10]} 33. Kg3 {[%emt 0:06:04]} Kg7 {[%emt 0:01:54]} 34. Kf2 {[%emt 0:01:05]} Bd7 {[%emt 0:00:18]} 35. Ke2 {[%emt 0:05:26]} Bc8 {[%emt 0:00:41]} 36. Kd2 {[%emt 0:00:08]} Bd7 {[%emt 0:01:37]} 37. Kc2 {[%emt 0:00:22]} Bc8 {[%emt 0:01:07]} 38. Ra1 {[%emt 0:00:16]} Kf6 {[%emt 0:02:33]} 39. g3 {[%emt 0:00:56]} Be6 {[%emt 0:01:53]} 40. Ra5 {[%emt 0:00:27]} Bd7 {[%emt 0:01:17]} 41. Kd2 {[%emt 0:30:15]} Kf7 {[%emt 0:31:29]} 42. Rb1 {[%emt 0:03:53]} Kg7 {[%emt 0:02:55]} 43. b3 {[%emt 0:01:18]} cxb3 {[%emt 0:00:49]} 44. Rxb3 {[%emt 0:00:23]} Be6 {[%emt 0:03:12]} 45. Nc2 {[%emt 0:02:52]} Rxa6 {[%emt 0:00:28]} 46. Rbxb5 {[%emt 0:01:31]} Rxa5 {[%emt 0:02:47]} 47. Rxa5 {[%emt 0:00:12]} Rd7 {[%emt 0:01:00]} 48. h4 {[%emt 0:01:14]} Bf7 {[%emt 0:07:52]} 49. Nb4 {[%emt 0:01:34]} Rb7 {[%emt 0:00:53]} 50. Kc2 {[%emt 0:01:10]} Rc7 {[%emt 0:00:14]} 51. Nxd5 {[%emt 0:00:38]} Rd7 {[%emt 0:00:13]} 52. c4 {[%emt 0:00:37]} Rb7 {[%emt 0:00:00]} 53. Kc3 {[%emt 0:00:00]} Bxd5 {[%emt 0:00:00]} 54. Rxd5 {[%emt 0:00:00]} a6 {[%emt 0:00:00]} 55. c5 {[%emt 0:00:00]} Rb1 {[%emt 0:00:00]} 56. Kc2 {[%emt 0:00:00]} Rb4 {[%emt 0:00:00]} 57. Rd7+ {[%emt 0:00:00]} Kf8 {[%emt 0:00:00]} 58. Ra7 {[%emt 0:00:00]} 1-0

[Event "23rd OIBM 2019"]
[Site "Gmund am Tegernsee"]
[Date "2019.10.27"]
[Round "2.21"]
[White "Heimrath, Reiner"]
[Black "Krzyzanowski, Marcin"]
[Result "0-1"]
[ECO "B06"]
[WhiteElo "2217"]
[BlackElo "2500"]
[Annotator "RC"]
[PlyCount "92"]
[EventDate "2019.10.17"]
[EventType "swiss"]
[EventCountry "GER"]
[SourceTitle "playchess.com"]
[Source "ChessBase"]
[SourceQuality "1"]
[TimeControl "40/5400+30:1800+30"]

1. e4 {[%emt 0:00:00]} g6 {[%emt 0:00:00]} 2. Nc3 {[%emt 0:00:28]} Bg7 {[%emt 0:01:33]} 3. g3 {[%emt 0:00:23]} d6 {[%emt 0:02:34]} 4. Bg2 {[%emt 0:00:10]} e5 {[%emt 0:02:49]} 5. Nge2 {[%emt 0:01:56]} Nc6 {[%emt 0:01:23]} 6. d3 {[%emt 0:00:13]} h5 {[%emt 0:00:35]} 7. h4 {[%emt 0:00:09]} Bg4 {[%emt 0:00:46]} 8. f3 {[%emt 0:00:30]} Be6 {[%emt 0:00:28]} 9. Bg5 {[%emt 0:04:05]} Qd7 {[%emt 0:05:28]} 10. Qd2 {[%emt 0:03:33]} Nge7 {[%emt 0:01:33]} 11. a3 {[%emt 0:14:55]} a6 {[%emt 0:07:09]} 12. b4 {[%emt 0:08:00]} f6 {[%emt 0:16:17]} 13. Be3 {[%emt 0:00:51]} d5 {[%emt 0:00:06]} 14. exd5 {[%emt 0:03:33]} Nxd5 {[%emt 0:00:33]} 15. Nxd5 {[%emt 0:00:11]} Bxd5 {[%emt 0:00:34]} 16. O-O {[%emt 0:09:01]} Ne7 {[%emt 0:11:20]} 17. Nc3 {[%emt 0:07:41]} Bc6 {[%emt 0:03:13]} 18. Kh2 {[%emt 0:11:42]} f5 {[%emt 0:08:23]} 19. Bg5 {[%emt 0:06:45]} O-O {[%emt 0:02:01]} 20. Rae1 {[%emt 0:00:26]} Rae8 {[%emt 0:00:24]} 21. Re2 {[%emt 0:02:41]} Kh7 {[%emt 0:03:01]} 22. Rfe1 {[%emt 0:04:55]} Nc8 {[%emt 0:01:08]} 23. Nd1 {[%emt 0:03:30]} Nd6 {[%emt 0:02:13]} 24. Nf2 {[%emt 0:00:12]} Nb5 {[%emt 0:01:17]} 25. Be3 {[%emt 0:05:53]} f4 {[%emt 0:07:30]} 26. gxf4 {[%emt 0:01:21]} exf4 {[%emt 0:00:46]} 27. Bc5 {[%emt 0:00:06]} Bc3 {[%emt 0:02:48]} 28. Re7+ {[%emt 0:08:13]} Rxe7 {[%emt 0:02:05]} 29. Rxe7+ {[%emt 0:00:02]} Qxe7 {[%emt 0:00:09]} 30. Bxe7 {[%emt 0:00:10]} Bxd2 {[%emt 0:00:07]} 31. Bxf8 {[%emt 0:00:04]} Nxa3 {[%emt 0:03:26]} 32. c4 {[%emt 0:02:35]} Nc2 {[%emt 0:01:32]} 33. b5 {[%emt 0:00:40]} axb5 {[%emt 0:00:12]} 34. cxb5 {[%emt 0:00:32]} Bxb5 {[%emt 0:00:59]} 35. Be7 {[%emt 0:00:30]} Be3 {[%emt 0:03:05]} 36. Ne4 {[%emt 0:00:09]} Bxd3 {[%emt 0:00:51]} 37. Ng5+ {[%emt 0:00:17]} Kg8 {[%emt 0:01:15]} 38. Bd8 {[%emt 0:01:06]} c5 {[%emt 0:01:07]} 39. Bh3 {[%emt 0:00:12]} Nd4 {[%emt 0:02:39]} 40. Bc8 {[%emt 0:00:29]} b5 {[%emt 0:03:43]} 41. Be7 {[%emt 0:02:41]} c4 {[%emt 0:10:19]} 42. Bb7 {[%emt 0:01:30]} c3 {[%emt 0:02:47]} 43. Bd5+ {[%emt 0:01:42]} Kg7 {[%emt 0:00:06]} 44. Bd6 {[%emt 0:00:47]} c2 {[%emt 0:02:14]} 45. Be5+ {[%emt 0:14:09]} Kf8 {[%emt 0:00:10]} 46. Bd6+ {[%emt 0:04:33]} Ke8 {[%emt 0:00:07]} 0-1

[Event "23rd OIBM 2019"]
[Site "Gmund am Tegernsee"]
[Date "2019.10.27"]
[Round "2.22"]
[White "Del Rio De Angelis, Salvador G."]
[Black "Ehrke, Michael"]
[Result "1-0"]
[ECO "D32"]
[WhiteElo "2491"]
[BlackElo "2222"]
[Annotator "ChessBase"]
[PlyCount "77"]
[EventDate "2019.10.17"]
[EventType "swiss"]
[EventCountry "GER"]
[SourceTitle "playchess.com"]
[Source "ChessBase"]
[SourceQuality "1"]
[TimeControl "40/5400+30:1800+30"]

1. d4 {[%emt 0:03:53]} d5 {[%emt 0:00:00]} 2. c4 {[%emt 0:00:10]} e6 {[%emt 0:00:25]} 3. Nc3 {[%emt 0:00:15]} c5 {[%emt 0:00:23]} 4. cxd5 {[%emt 0:00:20]} exd5 {[%emt 0:00:12]} 5. Nf3 {[%emt 0:00:12]} Nc6 {[%emt 0:00:38]} 6. dxc5 {[%emt 0:00:52]} d4 {[%emt 0:01:29]} 7. Na4 {[%emt 0:02:43]} Bxc5 {[%emt 0:02:26]} 8. Nxc5 {[%emt 0:00:13]} Qa5+ {[%emt 0:00:08]} 9. Qd2 {[%emt 0:00:15]} Qxc5 {[%emt 0:00:21]} 10. e3 {[%emt 0:00:07]} dxe3 {[%emt 0:01:50]} 11. Qxe3+ {[%emt 0:00:10]} Qxe3+ {[%emt 0:01:35]} 12. Bxe3 {[%emt 0:00:07]} Nge7 {[%emt 0:02:24]} 13. Bc4 {[%emt 0:01:25]} O-O {[%emt 0:01:42]} 14. O-O {[%emt 0:00:35]} Bg4 {[%emt 0:01:48]} 15. Ng5 {[%emt 0:00:36]} Bf5 {[%emt 0:12:57]} 16. f3 {[%emt 0:06:16]} h6 {[%emt 0:04:47]} 17. Ne4 {[%emt 0:00:11]} Rfd8 {[%emt 0:00:51]} 18. Rad1 {[%emt 0:04:20]} Ne5 {[%emt 0:08:10]} 19. Bb3 {[%emt 0:00:58]} Bxe4 {[%emt 0:10:49]} 20. fxe4 {[%emt 0:00:09]} Rxd1 {[%emt 0:02:31]} 21. Rxd1 {[%emt 0:00:08]} N7c6 {[%emt 0:00:59]} 22. h3 {[%emt 0:03:15]} a6 {[%emt 0:01:28]} 23. Bb6 {[%emt 0:06:51]} Re8 {[%emt 0:01:33]} 24. a3 {[%emt 0:00:52]} Re7 {[%emt 0:02:49]} 25. Bc5 {[%emt 0:01:33]} Re8 {[%emt 0:07:00]} 26. Bd5 {[%emt 0:02:36]} Rd8 {[%emt 0:01:19]} 27. Kf2 {[%emt 0:11:14]} Rd7 {[%emt 0:03:18]} 28. Ke2 {[%emt 0:00:43]} g6 {[%emt 0:06:31]} 29. b4 {[%emt 0:01:42]} Kg7 {[%emt 0:11:28]} 30. Rc1 {[%emt 0:06:05]} f6 {[%emt 0:04:31]} 31. a4 {[%emt 0:04:56]} Ne7 {[%emt 0:01:26]} 32. Be6 {[%emt 0:01:17]} Rc7 {[%emt 0:00:44]} 33. Rd1 {[%emt 0:03:14]} b6 {[%emt 0:04:30]} 34. Bd6 {[%emt 0:02:26]} Rc2+ {[%emt 0:01:14]} 35. Rd2 {[%emt 0:00:20]} Rxd2+ {[%emt 0:00:15]} 36. Kxd2 {[%emt 0:00:07]} N7c6 {[%emt 0:00:51]} 37. Kc3 {[%emt 0:01:52]} Nd8 {[%emt 0:01:22]} 38. Bc8 {[%emt 0:00:39]} a5 {[%emt 0:01:37]} 39. b5 {[%emt 0:00:31]} 1-0

[Event "23rd OIBM 2019"]
[Site "Gmund am Tegernsee"]
[Date "2019.10.27"]
[Round "2.23"]
[White "Zeier, Klaus"]
[Black "Yankelevich, Lev"]
[Result "0-1"]
[ECO "C73"]
[WhiteElo "2215"]
[BlackElo "2480"]
[Annotator "ChessBase"]
[PlyCount "86"]
[EventDate "2019.10.17"]
[EventType "swiss"]
[EventCountry "GER"]
[SourceTitle "playchess.com"]
[Source "ChessBase"]
[SourceQuality "1"]
[TimeControl "40/5400+30:1800+30"]

1. e4 {[%emt 0:00:00]} e5 {[%emt 0:04:01]} 2. Nf3 {[%emt 0:00:00]} Nc6 {[%emt 0:00:03]} 3. Bb5 {[%emt 0:00:00]} a6 {[%emt 0:00:06]} 4. Ba4 {[%emt 0:00:00]} d6 {[%emt 0:00:04]} 5. Bxc6+ {[%emt 0:00:30]} bxc6 {[%emt 0:00:07]} 6. d4 {[%emt 0:00:09]} exd4 {[%emt 0:00:33]} 7. Nxd4 {[%emt 0:00:15]} c5 {[%emt 0:01:26]} 8. Ne2 {[%emt 0:00:48]} g6 {[%emt 0:03:17]} 9. c4 {[%emt 0:03:55]} Bg7 {[%emt 0:00:49]} 10. O-O {[%emt 0:01:35]} Ne7 {[%emt 0:00:40]} 11. Nbc3 {[%emt 0:02:36]} O-O {[%emt 0:04:34]} 12. Bg5 {[%emt 0:05:08]} h6 {[%emt 0:00:23]} 13. Be3 {[%emt 0:00:22]} Rb8 {[%emt 0:08:22]} 14. Qd2 {[%emt 0:02:21]} Kh7 {[%emt 0:00:15]} 15. Rad1 {[%emt 0:00:31]} Be6 {[%emt 0:01:46]} 16. b3 {[%emt 0:00:52]} f5 {[%emt 0:00:07]} 17. Nf4 {[%emt 0:10:47]} Bf7 {[%emt 0:04:02]} 18. exf5 {[%emt 0:01:42]} Nxf5 {[%emt 0:00:21]} 19. Ncd5 {[%emt 0:05:15]} Re8 {[%emt 0:07:23]} 20. Qd3 {[%emt 0:03:09]} c6 {[%emt 0:03:45]} 21. Nc3 {[%emt 0:00:18]} Nxe3 {[%emt 0:01:42]} 22. fxe3 {[%emt 0:00:03]} Qe7 {[%emt 0:00:04]} 23. Rf3 {[%emt 0:06:49]} Qe5 {[%emt 0:10:45]} 24. Nce2 {[%emt 0:11:39]} Rbd8 {[%emt 0:02:49]} 25. Nh5 {[%emt 0:12:08]} Be6 {[%emt 0:08:30]} 26. Nxg7 {[%emt 0:02:57]} Kxg7 {[%emt 0:00:06]} 27. Rdf1 {[%emt 0:09:26]} Bf5 {[%emt 0:00:54]} 28. Qc3 {[%emt 0:00:34]} d5 {[%emt 0:00:57]} 29. cxd5 {[%emt 0:06:13]} Qxc3 {[%emt 0:00:07]} 30. Nxc3 {[%emt 0:00:03]} cxd5 {[%emt 0:00:02]} 31. h3 {[%emt 0:03:49]} h5 {[%emt 0:04:43]} 32. Ne2 {[%emt 0:03:24]} h4 {[%emt 0:01:46]} 33. Rd1 {[%emt 0:00:36]} d4 {[%emt 0:00:39]} 34. Rd2 {[%emt 0:00:57]} Be4 {[%emt 0:01:10]} 35. Rf1 {[%emt 0:02:10]} dxe3 {[%emt 0:00:23]} 36. Rxd8 {[%emt 0:00:15]} Rxd8 {[%emt 0:00:05]} 37. Re1 {[%emt 0:00:57]} Re8 {[%emt 0:02:51]} 38. Rd1 {[%emt 0:01:17]} Rf8 {[%emt 0:02:04]} 39. Rd7+ {[%emt 0:01:54]} Rf7 {[%emt 0:00:11]} 40. Rxf7+ {[%emt 0:00:20]} Kxf7 {[%emt 0:00:05]} 41. Nc3 {[%emt 0:30:23]} Bc6 {[%emt 0:33:52]} 42. Kf1 {[%emt 0:00:21]} Ke6 {[%emt 0:00:38]} 43. Nd1 {[%emt 0:01:10]} Bxg2+ {[%emt 0:00:15]} 0-1